lending/lending_fUSD_20250621
["ID","MTS","AMOUNT","RATE_DAILY","PERIOD"]
[366806848,1750467040198,-490.0,0.00024657,2]
[366806849,1750467040208,-490.0,0.00024657,2]
[366806850,1750467040218,-490.0,0.00024657,2]
[366806851,1750467040227,-490.0,0.00024657,2]
[366806852,1750467040237,-490.0,0.00024657,2]
[366806853,1750467040248,-490.0,0.00024657,2]
[366806854,1750467040257,-490.0,0.00024657,2]
[366806855,1750467040267,-490.0,0.00024657,2]
[366806856,1750467040276,-490.0,0.00024657,2]
[366806857,1750467040288,-202.11315483,0.00024657,2]
[366806858,1750467040298,-490.0,0.00024657,2]
[366806859,1750467040308,-572.72,0.00024657,2]
[366806860,1750467040318,-490.0,0.00024657,2]
[366806861,1750467040328,-554.64966843,0.00024657,2]
[366806862,1750467040339,-513.8222795,0.00024657,2]
[366806863,1750467040349,-557.36703808,0.00024657,2]
[366806864,1750467040359,-490.0,0.00024657,2]
[366806865,1750467040371,-490.0,0.00024657,2]
[366806866,1750467040381,-490.0,0.00024657,2]
[366806867,1750467040391,-590.26,0.00024657,2]
[366806868,1750467040401,-490.0,0.00024657,2]
[366806869,1750467040411,-490.0,0.00024657,2]
[366806870,1750467040420,-490.0,0.00024657,2]
[366806871,1750467040430,-490.0,0.00024657,2]
[366806872,1750467040440,-490.0,0.00024657,2]
[366806873,1750467040450,-490.0,0.00024657,2]
[366806874,1750467040460,-490.0,0.00024657,2]
[366806875,1750467040470,-490.0,0.00024657,2]
[366806876,1750467040480,-490.0,0.00024657,2]
[366806877,1750467040491,-490.0,0.00024657,2]
[366806878,1750467040502,-490.0,0.00024657,2]
[366806879,1750467040512,-496.55675977,0.00024657,2]
[366806880,1750467040522,-490.0,0.00024657,2]
[366806881,1750467040531,-490.0,0.00024657,2]
[366806882,1750467040541,-488.16840237,0.00024657,2]
[366806883,1750467040551,-490.0,0.00024657,2]
[366806884,1750467040561,-490.0,0.00024657,2]
[366806885,1750467040571,-490.0,0.00024657,2]
[366806886,1750467040581,-490.0,0.00024657,2]
[366806887,1750467040591,-250.0,0.00024657,2]
[366806888,1750467040601,-490.0,0.00024657,2]
[366806889,1750467040612,-490.0,0.00024657,2]
[366806890,1750467040622,-490.0,0.00024657,2]
[366806891,1750467040632,-490.0,0.00024657,2]
[366806892,1750467040642,-490.0,0.00024657,2]
[366806893,1750467040651,-490.0,0.00024657,2]
[366806894,1750467040662,-490.0,0.00024657,2]
[366806895,1750467040671,-490.0,0.00024657,2]
[366806896,1750467040681,-490.0,0.00024657,2]
[366806897,1750467040691,-490.0,0.00024657,2]
[366806898,1750467040702,-350.0,0.00024657,2]
[366806899,1750467040712,-693.05,0.00024657,2]
[366806900,1750467040722,-490.0,0.00024657,2]
[366806901,1750467040732,-490.0,0.00024657,2]
[366806902,1750467040742,-186.22609006,0.00024657,2]
[366806903,1750467040752,-679.07,0.00024657,2]
[366806904,1750467040763,-490.0,0.00024657,2]
[366806906,1750467040772,-490.0,0.00024657,2]
[366806907,1750467040782,-490.0,0.00024657,2]
[366806908,1750467040792,-490.0,0.00024657,2]
[366806909,1750467040801,-600.5,0.00024657,2]
[366806910,1750467040812,-490.0,0.00024657,2]
[366806911,1750467040822,-845.06,0.00024657,2]
[366806912,1750467040832,-490.0,0.00024657,2]
[366806913,1750467040841,-336.4473383,0.00024657,2]
[366806914,1750467040875,-163.5526617,0.00024657,2]
[366806915,1750467040884,-490.0,0.00024657,2]
[366806916,1750467040894,-490.0,0.00024657,2]
[366806917,1750467040903,-501.35,0.00024657,2]
[366806918,1750467040913,-490.0,0.00024657,2]
[366806919,1750467040923,-490.0,0.00024657,2]
[366806920,1750467040933,-490.0,0.00024657,2]
[366806921,1750467040942,-490.0,0.00024657,2]
[366806922,1750467040951,-490.0,0.00024657,2]
[366806923,1750467040961,-490.0,0.00024657,2]
[366806924,1750467040970,-490.0,0.00024657,2]
[366806925,1750467040980,-490.0,0.00024657,2]
[366806926,1750467040989,-490.0,0.00024657,2]
[366806927,1750467040999,-490.0,0.00024657,2]
[366806928,1750467041009,-490.0,0.00024657,2]
[366806929,1750467041019,-1011.08,0.00024657,2]
[366806930,1750467041030,-490.0,0.00024657,2]
[366806931,1750467041040,-490.0,0.00024657,2]
[366806932,1750467041051,-1710.27,0.00024657,2]
[366806933,1750467041061,-490.0,0.00024657,2]
[366806934,1750467041070,-490.0,0.00024657,2]
[366806935,1750467041080,-490.0,0.00024657,2]
[366806936,1750467041090,-490.0,0.00024657,2]
[366806937,1750467041100,-324.12,0.00024657,2]
[366806938,1750467041110,-490.0,0.00024657,2]
[366806939,1750467041120,-490.0,0.00024657,2]
[366806940,1750467041130,-355.11886469,0.00024657,2]
[366806941,1750467041140,-490.0,0.00024657,2]
[366806942,1750467041150,-490.0,0.00024657,2]
[366806943,1750467041160,-490.0,0.00024657,2]
[366806944,1750467041170,-490.0,0.00024657,2]
[366806945,1750467041180,-490.0,0.00024657,2]
[366806946,1750467041190,-490.0,0.00024657,2]
[366806947,1750467041200,-490.0,0.00024657,2]
[366806948,1750467041210,-490.0,0.00024657,2]
[366806949,1750467041220,-490.0,0.00024657,2]
[366806950,1750467041229,-675.57,0.00024657,2]
[366806951,1750467041239,-490.0,0.00024657,2]
[366806952,1750467041249,-573.37,0.00024657,2]
[366806953,1750467041259,-490.0,0.00024657,2]
[366806954,1750467041269,-490.0,0.00024657,2]
[366806955,1750467041279,-490.0,0.00024657,2]
[366806956,1750467041293,-490.0,0.00024657,2]
[366806957,1750467041303,-490.0,0.00024657,2]
[366806958,1750467041313,-1566.91,0.00024657,2]
[366806959,1750467041323,-490.0,0.00024657,2]
[366806960,1750467041335,-490.0,0.00024657,2]
[366806961,1750467041345,-490.0,0.00024657,2]
[366806962,1750467041356,-490.0,0.00024657,2]
[366806963,1750467041368,-490.0,0.00024657,2]
[366806964,1750467041381,-490.0,0.00024657,2]
[366806965,1750467041392,-490.0,0.00024657,2]
[366806966,1750467041402,-490.0,0.00024657,2]
[366806967,1750467041412,-490.0,0.00024657,2]
[366806968,1750467041422,-490.0,0.00024657,2]
[366806969,1750467041432,-573.81,0.00024657,2]
[366806970,1750467041442,-3259.78,0.00024657,2]
[366806971,1750467041452,-490.0,0.00024657,2]
[366806972,1750467041462,-490.0,0.00024657,2]
[366806973,1750467041472,-490.0,0.00024657,2]
[366806974,1750467041482,-490.0,0.00024657,2]
[366806975,1750467041492,-490.0,0.00024657,2]
[366806976,1750467041502,-490.0,0.00024657,2]
[366806977,1750467041512,-490.0,0.00024657,2]
[366806978,1750467041521,-490.0,0.00024657,2]
[366806979,1750467041530,-490.0,0.00024657,2]
[366806980,1750467041540,-490.0,0.00024657,2]
[366806981,1750467041549,-490.0,0.00024657,2]
[366806982,1750467041560,-490.0,0.00024657,2]
[366806983,1750467041569,-490.0,0.00024657,2]
[366806984,1750467041579,-1017.95,0.00024657,2]
[366806985,1750467041588,-648.85,0.00024657,2]
[366806986,1750467041598,-490.0,0.00024657,2]
[366806987,1750467041608,-490.0,0.00024657,2]
[366806988,1750467041617,-490.0,0.00024657,2]
[366806989,1750467041627,-490.0,0.00024657,2]
[366806990,1750467041637,-500.0,0.00024657,2]
[366806991,1750467041647,-500.0,0.00024657,2]
[366806992,1750467041657,-490.0,0.00024657,2]
[366806993,1750467041666,-490.0,0.00024657,2]
[366806994,1750467041676,-490.0,0.00024657,2]
[366806995,1750467041686,-1010.41,0.00024657,2]
[366806996,1750467041696,-838.54,0.00024657,2]
[366806997,1750467041706,-561.12,0.00024657,2]
[366806998,1750467041716,-490.0,0.00024657,2]
[366806999,1750467041726,-490.0,0.00024657,2]
[366807000,1750467041738,-210.0,0.00024657,2]
[366807001,1750467041748,-490.0,0.00024657,2]
[366807002,1750467041758,-490.0,0.00024657,2]
[366807003,1750467041767,-490.0,0.00024657,2]
[366807004,1750467041778,-490.0,0.00024657,2]
[366807005,1750467041788,-490.0,0.00024657,2]
[366807006,1750467041798,-490.0,0.00024657,2]
[366807007,1750467041809,-490.0,0.00024657,2]
[366807008,1750467041819,-490.0,0.00024657,2]
[366807009,1750467041829,-335.92,0.00024657,2]
[366807010,1750467041839,-490.0,0.00024657,2]
[366807011,1750467041848,-490.0,0.00024657,2]
[366807012,1750467041858,-500.0,0.00024657,2]
[366807013,1750467041867,-500.0,0.00024657,2]
[366807014,1750467041877,-500.0,0.00024657,2]
[366807015,1750467041887,-7664.92,0.00024657,2]
[366807016,1750467041897,-490.0,0.00024657,2]
[366807017,1750467041907,-490.0,0.00024657,2]
[366807018,1750467041917,-490.0,0.00024657,2]
[366807019,1750467041927,-490.0,0.00024657,2]
[366807020,1750467041937,-535.72,0.00024657,2]
[366807021,1750467041947,-490.0,0.00024657,2]
[366807022,1750467041958,-490.0,0.00024657,2]
[366807023,1750467041968,-490.0,0.00024657,2]
[366807024,1750467041978,-1406.95,0.00024657,2]
[366807025,1750467041988,-1406.95,0.00024657,2]
[366807026,1750467041998,-329.85,0.00024657,2]
[366807027,1750467042009,-643.42,0.00024657,2]
[366807028,1750467042019,-210.0,0.00024657,2]
[366807029,1750467042029,-490.0,0.00024657,2]
[366807030,1750467042039,-490.0,0.00024657,2]
[366807031,1750467042048,-499.9071514,0.00024657,2]
[366807032,1750467042058,-490.0,0.00024657,2]
[366807033,1750467042068,-490.0,0.00024657,2]
[366807034,1750467042078,-490.0,0.00024657,2]
[366807035,1750467042088,-490.0,0.00024657,2]
[366807036,1750467042098,-740.37,0.00024657,2]
[366807037,1750467042109,-666.48,0.00024657,2]
[366807038,1750467042123,-1402.81,0.00024657,2]
[366807039,1750467042132,-1928.49,0.00024657,2]
[366807040,1750467042142,-490.0,0.00024657,2]
[366807041,1750467042151,-490.0,0.00024657,2]
[366807042,1750467042161,-490.0,0.00024657,2]
[366807043,1750467042171,-490.0,0.00024657,2]
[366807044,1750467042181,-490.0,0.00024657,2]
[366807045,1750467042190,-490.0,0.00024657,2]
[366807046,1750467042200,-490.0,0.00024657,2]
[366807047,1750467042210,-490.0,0.00024657,2]
[366807048,1750467042220,-875.93,0.00024657,2]
[366807049,1750467042229,-490.0,0.00024657,2]
[366807050,1750467042239,-575.61,0.00024657,2]
[366807051,1750467042249,-150.0,0.00024657,2]
[366807052,1750467042258,-2680.72,0.00024657,2]
[366807053,1750467042269,-490.0,0.00024657,2]
[366807054,1750467042279,-490.0,0.00024657,2]
[366807055,1750467042291,-1148.65,0.00024657,2]
[366807056,1750467042301,-150.0,0.00024657,2]
[366807057,1750467042311,-490.0,0.00024657,2]
[366807058,1750467042321,-499.47,0.00024657,2]
[366807059,1750467042331,-150.0,0.00024657,2]
[366807060,1750467042340,-490.0,0.00024657,2]
[366807061,1750467042350,-490.0,0.00024657,2]
[366807062,1750467042360,-490.0,0.00024657,2]
[366807063,1750467042370,-585.26,0.00024657,2]
[366807064,1750467042380,-490.0,0.00024657,2]
[366807065,1750467042390,-490.0,0.00024657,2]
[366807066,1750467042400,-506.05,0.00024657,2]
[366807067,1750467042410,-490.0,0.00024657,2]
[366807068,1750467042420,-755.96,0.00024657,2]
[366807069,1750467042430,-490.0,0.00024657,2]
[366807070,1750467042644,-150.0,0.00024657,2]
[366807071,1750467042656,-5788.94,0.00024657,2]
[366807072,1750467042666,-286.44216813,0.00024657,2]
[366807073,1750467042676,-150.0,0.00024657,2]
[366807074,1750467042686,-490.0,0.00024657,2]
[366807075,1750467042695,-490.0,0.00024657,2]
[366807076,1750467042706,-979.05,0.00024657,2]
[366807077,1750467042716,-150.0,0.00024657,2]
[366807078,1750467042726,-490.0,0.00024657,2]
[366807079,1750467042737,-1714.67,0.00024657,2]
[366807080,1750467042747,-1056.73,0.00024657,2]
[366807081,1750467042757,-703.48,0.00024657,2]
[366807082,1750467042767,-524.04,0.00024657,2]
[366807083,1750467042777,-490.0,0.00024657,2]
[366807084,1750467042788,-490.0,0.00024657,2]
[366807085,1750467042797,-490.0,0.00024657,2]
[366807086,1750467042807,-357.28736615,0.00024657,2]
[366807087,1750467042817,-490.0,0.00024657,2]
[366807088,1750467042827,-500.0,0.00024657,2]
[366807089,1750467042837,-490.0,0.00024657,2]
[366807090,1750467042847,-490.0,0.00024657,2]
[366807091,1750467042857,-490.0,0.00024657,2]
[366807092,1750467042867,-490.0,0.00024657,2]
[366807093,1750467042877,-1389.72,0.00024657,2]
[366807094,1750467042887,-490.0,0.00024657,2]
[366807095,1750467042897,-490.0,0.00024657,2]
[366807096,1750467042907,-490.0,0.00024657,2]
[366807097,1750467042916,-490.0,0.00024657,2]
[366807098,1750467042926,-490.0,0.00024657,2]
[366807099,1750467042935,-490.0,0.00024657,2]
[366807100,1750467042945,-490.0,0.00024657,2]
[366807101,1750467042955,-490.0,0.00024657,2]
[366807102,1750467042964,-490.0,0.00024657,2]
[366807103,1750467042974,-490.0,0.00024657,2]
[366807104,1750467042984,-778.17,0.00024657,2]
[366807105,1750467042994,-1748.79,0.00024657,2]
[366807106,1750467043003,-490.0,0.00024657,2]
[366807107,1750467043013,-490.0,0.00024657,2]
[366807108,1750467043023,-490.0,0.00024657,2]
[366807109,1750467043032,-490.0,0.00024657,2]
[366807110,1750467043042,-490.0,0.00024657,2]
[366807111,1750467043051,-567.41,0.00024657,2]
[366807112,1750467043061,-490.0,0.00024657,2]
[366807113,1750467043071,-490.0,0.00024657,2]
[366807114,1750467043081,-490.0,0.00024657,2]
[366807115,1750467043090,-528.60530066,0.00024657,2]
[366807116,1750467043099,-1625.6,0.00024657,2]
[366807117,1750467043110,-634.65983777,0.00024657,2]
[366807118,1750467043119,-490.0,0.00024657,2]
[366807119,1750467043129,-490.0,0.00024657,2]
[366807120,1750467043139,-490.0,0.00024657,2]
[366807121,1750467043149,-490.0,0.00024657,2]
[366807122,1750467043159,-490.0,0.00024657,2]
[366807123,1750467043169,-490.0,0.00024657,2]
[366807124,1750467043178,-490.0,0.00024657,2]
[366807125,1750467043188,-611.89895685,0.00024657,2]
[366807126,1750467043198,-490.0,0.00024657,2]
[366807127,1750467043207,-490.0,0.00024657,2]
[366807128,1750467043217,-490.0,0.00024657,2]
[366807129,1750467043227,-490.0,0.00024657,2]
[366807130,1750467043236,-490.0,0.00024657,2]
[366807131,1750467043248,-630.0,0.00024657,2]
[366807132,1750467043258,-1000.0,0.00024657,2]
[366807133,1750467043268,-875.48,0.00024657,2]
[366807134,1750467043278,-210.0,0.00024657,2]
[366807135,1750467043289,-490.0,0.00024657,2]
[366807136,1750467043300,-513.0,0.00024657,2]
[366807137,1750467043310,-2895.02,0.00024657,2]
[366807138,1750467043320,-490.0,0.00024657,2]
[366807139,1750467043330,-490.0,0.00024657,2]
[366807140,1750467043339,-490.0,0.00024657,2]
[366807141,1750467043350,-490.0,0.00024657,2]
[366807142,1750467043360,-490.0,0.00024657,2]
[366807143,1750467043371,-490.0,0.00024657,2]
[366807144,1750467043380,-490.0,0.00024657,2]
[366807145,1750467043390,-490.0,0.00024657,2]
[366807146,1750467043400,-1070.55,0.00024657,2]
[366807147,1750467043411,-490.0,0.00024657,2]
[366807148,1750467043421,-490.0,0.00024657,2]
[366807149,1750467043431,-490.0,0.00024657,2]
[366807150,1750467043441,-490.0,0.00024657,2]
[366807151,1750467043452,-490.0,0.00024657,2]
[366807152,1750467043462,-490.0,0.00024657,2]
[366807153,1750467043472,-490.0,0.00024657,2]
[366807154,1750467043481,-1435.61,0.00024657,2]
[366807155,1750467043491,-874.16,0.00024657,2]
[366807156,1750467043501,-490.0,0.00024657,2]
[366807157,1750467043511,-490.0,0.00024657,2]
[366807158,1750467043521,-490.0,0.00024657,2]
[366807159,1750467043531,-210.0,0.00024657,2]
[366807160,1750467043541,-490.0,0.00024657,2]
[366807161,1750467043550,-490.0,0.00024657,2]
[366807162,1750467043560,-630.58,0.00024657,2]
[366807163,1750467043569,-490.0,0.00024657,2]
[366807164,1750467043580,-210.0,0.00024657,2]
[366807165,1750467043590,-490.0,0.00024657,2]
[366807166,1750467043599,-490.0,0.00024657,2]
[366807167,1750467043609,-490.0,0.00024657,2]
[366807168,1750467043619,-490.0,0.00024657,2]
[366807169,1750467043629,-2562.11,0.00024657,2]
[366807170,1750467043639,-490.0,0.00024657,2]
[366807171,1750467043650,-490.0,0.00024657,2]
[366807172,1750467043660,-490.0,0.00024657,2]
[366807173,1750467043670,-490.0,0.00024657,2]
[366807174,1750467043680,-490.0,0.00024657,2]
[366807175,1750467043691,-1288.18,0.00024657,2]
[366807176,1750467043701,-210.0,0.00024657,2]
[366807177,1750467043711,-490.0,0.00024657,2]
[366807178,1750467043722,-490.0,0.00024657,2]
[366807179,1750467043732,-490.0,0.00024657,2]
[366807180,1750467043743,-490.0,0.00024657,2]
[366807181,1750467043754,-490.0,0.00024657,2]
[366807182,1750467043765,-490.0,0.00024657,2]
[366807183,1750467043776,-817.53,0.00024657,2]
[366807184,1750467043786,-490.0,0.00024657,2]
[366807185,1750467043796,-490.0,0.00024657,2]
[366807186,1750467043807,-490.0,0.00024657,2]
[366807187,1750467043818,-490.0,0.00024657,2]
[366807188,1750467043828,-490.0,0.00024657,2]
[366807189,1750467043838,-490.0,0.00024657,2]
[366807190,1750467043848,-1310.38,0.00024657,2]
[366807191,1750467043858,-490.0,0.00024657,2]
[366807192,1750467043868,-490.0,0.00024657,2]
[366807193,1750467043878,-490.0,0.00024657,2]
[366807194,1750467043888,-490.0,0.00024657,2]
[366807195,1750467043898,-1069.86,0.00024657,2]
[366807196,1750467043909,-490.0,0.00024657,2]
[366807197,1750467043921,-490.0,0.00024657,2]
[366807198,1750467043931,-490.0,0.00024657,2]
[366807199,1750467043942,-490.0,0.00024657,2]
[366807200,1750467043952,-490.0,0.00024657,2]
[366807201,1750467043963,-490.0,0.00024657,2]
[366807202,1750467043973,-490.0,0.00024657,2]
[366807203,1750467043984,-490.0,0.00024657,2]
[366807204,1750467043994,-490.0,0.00024657,2]
[366807205,1750467044003,-490.0,0.00024657,2]
[366807206,1750467044015,-490.0,0.00024657,2]
[366807207,1750467044025,-5920.244102,0.00024657,2]
[366807208,1750467044036,-490.0,0.00024657,2]
[366807209,1750467044047,-490.0,0.00024657,2]
[366807210,1750467044057,-490.0,0.00024657,2]
[366807211,1750467044068,-490.0,0.00024657,2]
[366807212,1750467044078,-490.0,0.00024657,2]
[366807213,1750467044089,-525.89,0.00024657,2]
[366807214,1750467044099,-490.0,0.00024657,2]
[366807215,1750467044110,-490.0,0.00024657,2]
[366807216,1750467044120,-490.0,0.00024657,2]
[366807217,1750467044129,-490.0,0.00024657,2]
[366807218,1750467044139,-622.86,0.00024657,2]
[366807219,1750467044149,-800.28,0.00024657,2]
[366807220,1750467044160,-490.0,0.00024657,2]
[366807221,1750467044170,-210.0,0.00024657,2]
[366807222,1750467044179,-490.0,0.00024657,2]
[366807223,1750467044189,-490.0,0.00024657,2]
[366807224,1750467044199,-490.0,0.00024657,2]
[366807225,1750467044208,-490.0,0.00024657,2]
[366807226,1750467044217,-490.0,0.00024657,2]
[366807227,1750467044227,-1000.0,0.00024658,2]
[366807228,1750467044237,-150.0,0.00024658,2]
[366807229,1750467044247,-150.0,0.00024658,2]
[366807230,1750467044256,-150.0,0.00024659,2]
[366807231,1750467044266,-150.0,0.0002466,2]
[366807232,1750467044276,-1000.0,0.00024667,2]
[366807233,1750467044286,-500.0,0.00024673,2]
[366807234,1750467044299,-502.48405449,0.00024673,2]
[366807235,1750467044309,-500.0,0.00024673,2]
[366807236,1750467044318,-500.0,0.00024673,2]
[366807237,1750467044328,-500.0,0.00024673,2]
[366807238,1750467044339,-500.0,0.00024673,2]
[366807239,1750467044349,-500.0,0.00024673,2]
[366807240,1750467044359,-500.0,0.00024673,2]
[366807241,1750467044370,-554.76756505,0.00024673,2]
[366807242,1750467044381,-500.0,0.00024673,2]
[366807243,1750467044391,-500.0,0.00024673,2]
[366807244,1750467044401,-500.0,0.00024673,2]
[366807245,1750467044410,-152.89761624,0.00024673,2]
[366807246,1750467044420,-500.0,0.00024673,2]
[366807247,1750467044430,-150.0,0.00024674,2]
[366807248,1750467044440,-7012.83633181,0.00024681,2]
[366807249,1750467044449,-150.0,0.00024684,2]
[366807250,1750467044458,-242.29387625,0.00024684,2]
[366807251,1750467044468,-150.0,0.00024684,2]
[366807253,1750467044478,-150.0,0.00024684,2]
[366807255,1750467044488,-150.0,0.00024685,2]
[366807256,1750467044498,-150.0,0.00024686,2]
[366807257,1750467044508,-150.0,0.00024691,2]
[366807258,1750467044518,-150.0,0.00024697,2]
[366807260,1750467044528,-238.01800875,0.00024698,2]
[366807261,1750467044538,-150.0,0.00024698,2]
[366807262,1750467044547,-178.24764546,0.000247,2]
[366807263,1750467044557,-3414.39218294,0.000247,2]
[366807265,1750467044567,-644.03243176,0.000247,2]
[366807266,1750467044581,-2800.0,0.000247,9]
[366807267,1750467044597,-150.0,0.00024705,2]
[366807268,1750467044614,-150.0,0.00024712,2]
[366807269,1750467044629,-200.0,0.00024712,2]
[366807270,1750467044641,-150.0,0.00024712,2]
[366807271,1750467044657,-200.0,0.00024713,2]
[366807272,1750467044672,-150.0,0.00024721,2]
[366807273,1750467044687,-201.94462898,0.00024723,2]
[366807274,1750467044702,-150.0,0.00024736,2]
[366807275,1750467044719,-200.0,0.00024739,2]
[366807276,1750467044733,-200.0,0.00024739,2]
[366807277,1750467044746,-150.0,0.00024745,2]
[366807278,1750467044759,-150.0,0.00024745,2]
[366807279,1750467044776,-152.0,0.00024746,6]
[366807280,1750467044791,-178.24764546,0.00024748,2]
[366807281,1750467044806,-150.0,0.00024749,2]
[366807282,1750467044823,-150.0,0.00024751,2]
[366807283,1750467044839,-150.0,0.00024758,2]
[366807284,1750467044854,-3322.01261887,0.00024762,2]
[366807285,1750467044870,-150.0,0.00024765,2]
[366807286,1750467044886,-150.0,0.00024765,2]
[366807287,1750467044902,-150.0,0.00024768,2]
[366807288,1750467044916,-1000.0,0.00024776,2]
[366807289,1750467044930,-2110.0,0.0002478,2]
[366807290,1750467044944,-150.0,0.00024784,2]
[366807291,1750467044964,-150.0,0.00024787,2]
[366807292,1750467044981,-150.0,0.00024788,2]
[366807293,1750467044995,-178.24764546,0.00024797,2]
[366807294,1750467045009,-150.0,0.00024797,2]
[366807295,1750467045022,-500.0,0.00024799,4]
[366807296,1750467045033,-500.0,0.00024799,4]
[366807297,1750467045045,-500.0,0.00024799,4]
[366807298,1750467045058,-500.0,0.00024799,4]
[366807299,1750467045076,-500.0,0.00024799,4]
[366807300,1750467045089,-500.0,0.00024799,4]
[366807301,1750467045100,-500.0,0.00024799,2]
[366807302,1750467045111,-500.0,0.00024799,2]
[366807303,1750467045125,-521.87431361,0.00024799,2]
[366807304,1750467045141,-500.0,0.00024799,2]
[366807305,1750467045155,-500.0,0.00024799,2]
[366807306,1750467045167,-500.0,0.00024799,2]
[366807307,1750467045180,-500.0,0.00024799,2]
[366807308,1750467045193,-500.0,0.00024799,2]
[366807309,1750467045205,-500.0,0.00024799,2]
[366807310,1750467045217,-500.0,0.00024799,2]
[366807312,1750467045230,-500.0,0.00024799,2]
[366807315,1750467045242,-626.00890878,0.00024799,2]
[366807317,1750467045255,-4300.0,0.000248,9]
[366807319,1750467045268,-206038.83719,0.000248,2]
[366807322,1750467045280,-150.0,0.000248,2]
[366807324,1750467045296,-151.0,0.000248,7]
[366807326,1750467045309,-150.0,0.00024802,2]
[366807328,1750467045322,-150.0,0.00024805,2]
[366807330,1750467045339,-1646.41653268,0.00024813,2]
[366807331,1750467045352,-167.83168722,0.00024813,2]
[366807332,1750467045365,-151.0,0.00024813,7]
[366807333,1750467045379,-151.0,0.00024813,7]
[366807334,1750467045391,-150.0,0.00024814,2]
[366807335,1750467045404,-300.0,0.00024814,2]
[366807337,1750467045417,-150.0,0.00024817,2]
[366807338,1750467045430,-150.0,0.00024819,2]
[366807339,1750467045443,-508.58782464,0.00024821,2]
[366807340,1750467045457,-500.0,0.00024822,2]
[366807341,1750467045469,-151.0,0.00024822,7]
[366807342,1750467045482,-151.0,0.00024822,7]
[366807343,1750467045495,-151.0,0.00024822,7]
[366807344,1750467045509,-282.07,0.0002483,2]
[366807345,1750467045522,-150.0,0.00024838,2]
[366807346,1750467045536,-651.83795298,0.00024845,2]
[366807347,1750467045548,-178.24764546,0.00024845,2]
[366807348,1750467045561,-150.0,0.00024858,2]
[366807349,1750467045574,-1000.0,0.00024861,2]
[366807350,1750467045587,-151.0,0.00024861,7]
[366807351,1750467045601,-203.0,0.00024873,4]
[366807352,1750467045614,-150.0,0.00024881,2]
[366807353,1750467045628,-150.0,0.00024883,2]
[366807354,1750467045641,-7631.06804408,0.00024889,2]
[366807355,1750467045654,-7631.06804408,0.00024889,2]
[366807356,1750467045667,-15262.1360882,0.0002489,2]
[366807357,1750467045680,-150.0,0.00024892,2]
[366807358,1750467045694,-150.0,0.00024893,2]
[366807359,1750467045708,-178.24764546,0.00024894,2]
[366807360,1750467045721,-1000.0,0.00024898,2]
[366807361,1750467045733,-280.11,0.00024899,2]
[366807362,1750467045747,-500.0,0.00024899,4]
[366807363,1750467045759,-500.0,0.00024899,4]
[366807364,1750467045772,-607.88,0.00024899,4]